{"text_format":"1","workbook":"xlsx","n_sheets":2,"sheets":["Лист1","Лист2"],"not_rendered":{"charts":0,"images":0,"macros":1,"external_links":0,"defined_names":0,"comments":0,"pivot_tables":1},"unopened":[],"bounds":{"document_bytes":16777216,"sheet_cells":100000,"rows_first":2000,"rows_last":500,"rows_between":2000,"halvings":0,"cell_chars":16384,"cell_head_chars":4096},"cells_cut":0,"cells_raw":0,"read":"whole","date_system":"1900"}

{"sheet":"Лист1","index":0,"n_rows":20,"n_cols":8,"rows_kept":20,"cut":false,"hidden":false,"merged":[]}
[]
[]
["Названия строк","Сумма по полю 20 января","Сумма по полю 20 февраля","Сумма по полю 20 марта","Сумма по полю 20 апреля","Сумма по полю 20 мая","Сумма по полю 20 июня","Сумма по полю Итог"]
[1111,8,8,35,10,7,20,88]
[2222,4,13,9,10,2,12,50]
[3333,2,4,8,6,1,5,26]
[4444,2,5,4,3,2,4,20]
[5555,4,8,9,5,6,10,42]
[6666,2,7,4,1,6,4,24]
[7777,1,1,1,1,1,1,6]
["Общий итог",23,46,70,36,25,56,256]
[]
[null,"Строка должна остаться"]
["Все данные ниже сводной таблицы, независимо от их содержания и количества должны динамически опуститься вниз на то количество строк, на сколько увеличилась сводная таблица"]
["Все данные ниже сводной таблицы, независимо от их содержания и количества должны динамически опуститься вниз на то количество строк, на сколько увеличилась сводная таблица"]
["Все данные ниже сводной таблицы, независимо от их содержания и количества должны динамически опуститься вниз на то количество строк, на сколько увеличилась сводная таблица"]
["Все данные ниже сводной таблицы, независимо от их содержания и количества должны динамически опуститься вниз на то количество строк, на сколько увеличилась сводная таблица"]
["Все данные ниже сводной таблицы, независимо от их содержания и количества должны динамически опуститься вниз на то количество строк, на сколько увеличилась сводная таблица"]
["Все данные ниже сводной таблицы, независимо от их содержания и количества должны динамически опуститься вниз на то количество строк, на сколько увеличилась сводная таблица"]
["Все данные ниже сводной таблицы, независимо от их содержания и количества должны динамически опуститься вниз на то количество строк, на сколько увеличилась сводная таблица"]

{"sheet":"Лист2","index":1,"n_rows":31,"n_cols":10,"rows_kept":31,"cut":false,"hidden":false,"merged":[[27,3,27,5],[27,6,27,8]]}
[]
[]
[null,"№\nп/п","Наименование ","20 января","20 февраля","20 марта","20 апреля","20 мая","20 июня","Итог"]
[null,1,1111,2,1,23,2,3,5,{"$f":"SUM(Таблица1[[#This Row],[20 января]:[20 июня]])","v":36}]
[null,{"$f":"MAX(B4:B$4)+1","v":2},1111,2,3,1,1,2,6,{"$f":"SUM(Таблица1[[#This Row],[20 января]:[20 июня]])","v":15}]
[null,{"$f":"MAX(B$4:B5)+1","v":3},1111,2,2,5,1,1,2,{"$f":"SUM(Таблица1[[#This Row],[20 января]:[20 июня]])","v":13}]
[null,{"$f":"MAX(B$4:B6)+1","v":4},1111,2,2,6,6,1,7,{"$f":"SUM(Таблица1[[#This Row],[20 января]:[20 июня]])","v":24}]
[null,{"$f":"MAX(B$4:B7)+1","v":5},2222,2,7,2,4,1,8,{"$f":"SUM(Таблица1[[#This Row],[20 января]:[20 июня]])","v":24}]
[null,{"$f":"MAX(B$4:B8)+1","v":6},2222,2,6,7,6,1,4,{"$f":"SUM(Таблица1[[#This Row],[20 января]:[20 июня]])","v":26}]
[null,{"$f":"MAX(B$4:B9)+1","v":7},3333,2,4,8,6,1,5,{"$f":"SUM(Таблица1[[#This Row],[20 января]:[20 июня]])","v":26}]
[null,{"$f":"MAX(B$4:B10)+1","v":8},4444,2,5,4,3,2,4,{"$f":"SUM(Таблица1[[#This Row],[20 января]:[20 июня]])","v":20}]
[null,{"$f":"MAX(B$4:B11)+1","v":9},5555,3,3,5,4,1,4,{"$f":"SUM(Таблица1[[#This Row],[20 января]:[20 июня]])","v":20}]
[null,{"$f":"MAX(B$4:B12)+1","v":10},5555,3,4,4,1,5,6,{"$f":"SUM(Таблица1[[#This Row],[20 января]:[20 июня]])","v":23}]
[null,{"$f":"MAX(B$4:B13)+1","v":11},6666,2,7,4,1,6,4,{"$f":"SUM(Таблица1[[#This Row],[20 января]:[20 июня]])","v":24}]
[null,{"$f":"MAX(B$4:B14)+1","v":12},7777,1,1,1,1,1,1,{"$f":"SUM(Таблица1[[#This Row],[20 января]:[20 июня]])","v":6}]
[null,54,111,1,3,3,656,56,null,{"$f":"SUM(Таблица1[[#This Row],[20 января]:[20 июня]])","v":719}]
[null,{"$f":"MAX(B$4:B16)+1","v":55},4,3,3,null,null,null,null,{"$f":"SUM(Таблица1[[#This Row],[20 января]:[20 июня]])","v":6}]
[null,{"$f":"MAX(B$4:B17)+1","v":56},1,1,null,4,null,null,null,{"$f":"SUM(Таблица1[[#This Row],[20 января]:[20 июня]])","v":5}]
[null,{"$f":"MAX(B$4:B18)+1","v":57},4,3,2,4,null,null,null,{"$f":"SUM(Таблица1[[#This Row],[20 января]:[20 июня]])","v":9}]
[null,{"$f":"MAX(B$4:B19)+1","v":58},3,3,3,null,null,null,null,{"$f":"SUM(Таблица1[[#This Row],[20 января]:[20 июня]])","v":6}]
[null,{"$f":"MAX(B$4:B20)+1","v":59},4,4,null,null,null,null,null,{"$f":"SUM(Таблица1[[#This Row],[20 января]:[20 июня]])","v":4}]
[null,{"$f":"MAX(B$4:B21)+1","v":60},2,null,2,null,null,null,null,{"$f":"SUM(Таблица1[[#This Row],[20 января]:[20 июня]])","v":2}]
[null,{"$f":"MAX(B$4:B22)+1","v":61},1,null,null,null,null,null,null,{"$f":"SUM(Таблица1[[#This Row],[20 января]:[20 июня]])","v":0}]
[]
[]
[]
[null,"Строки должны остаться","по месяцам",{"$f":"SUM(D4:D15)","v":25},45,70,36,25,56,257]
[null,"при расширении умной таблицы","по кварталам",{"$f":"SUM(D27:F27)","v":140},null,null,{"$f":"SUM(G27:I27)","v":117},null,null,{"$f":"SUM(D28:I28)","v":257}]
[]
[]
[null,null,1]